[Event "Titled Tuesday Blitz February 15 Early 2022"]
[White "Lugovskoy, Maxim"]
[Black "Sadhwani, Raunak"]
[WhiteFideId "24126454"]
[BlackFideId "35093487"]
[WhiteElo "2444"]
[BlackElo "2616"]
[Result "1-0"]
[Round "03"]
[TimeControl "180+1"]
[Date "2022.02.15"]
[WhiteClock "0:00:04"]
[BlackClock "0:00:02"]

1. e4 {[%clk 0:03:00]}  e5 {[%clk 0:02:59]} 2. Nf3 {[%clk 0:03:00]}  Nc6 {[%clk 0:03:00]} 3. Nc3 {[%clk 0:03:00]}  Nf6 {[%clk 0:03:00]} 4. d4 {[%clk 0:03:00]}  exd4 {[%clk 0:03:01]} 5. Nxd4 {[%clk 0:03:01]}  Bb4 {[%clk 0:03:01]} 6. Nxc6 {[%clk 0:03:01]}  bxc6 {[%clk 0:03:02]} 7. Bd3 {[%clk 0:03:01]}  O-O {[%clk 0:03:02]} 8. O-O {[%clk 0:03:02]}  d5 {[%clk 0:03:03]} 9. exd5 {[%clk 0:03:02]}  cxd5 {[%clk 0:03:04]} 10. h3 {[%clk 0:03:02]}  h6 {[%clk 0:03:01]} 11. Qf3 {[%clk 0:03:01]}  c6 {[%clk 0:03:01]} 12. Bf4 {[%clk 0:03:00]}  Bd6 {[%clk 0:03:01]} 13. Ne2 {[%clk 0:03:00]}  Rb8 {[%clk 0:02:56]} 14. b3 {[%clk 0:03:00]}  Bxf4 {[%clk 0:02:53]} 15. Qxf4 {[%clk 0:02:58]}  Bb7 {[%clk 0:02:41]} 16. Rfe1 {[%clk 0:02:53]}  c5 {[%clk 0:02:39]} 17. Ng3 {[%clk 0:02:48]}  Re8 {[%clk 0:01:59]} 18. Nf5 {[%clk 0:02:47]}  Ne4 {[%clk 0:01:54]} 19. Bxe4 {[%clk 0:02:41]}  Rxe4 {[%clk 0:01:51]} 20. Rxe4 {[%clk 0:02:36]}  dxe4 {[%clk 0:01:52]} 21. Qg3 {[%clk 0:02:13]}  g6 {[%clk 0:01:49]} 22. Nxh6+ {[%clk 0:02:12]}  Kg7 {[%clk 0:01:46]} 23. Nf5+ {[%clk 0:02:12]}  Kg8 {[%clk 0:01:42]} 24. Ne3 {[%clk 0:02:00]}  Rc8 {[%clk 0:01:38]} 25. Rd1 {[%clk 0:02:01]}  Qe7 {[%clk 0:01:36]} 26. Nf5 {[%clk 0:01:57]}  Qe6 {[%clk 0:01:27]} 27. Ne3 {[%clk 0:01:46]}  Qe7 {[%clk 0:01:27]} 28. c4 {[%clk 0:01:45]}  Re8 {[%clk 0:01:11]} 29. Qd6 {[%clk 0:01:44]}  Kg7 {[%clk 0:01:09]} 30. Qxe7 {[%clk 0:01:40]}  Rxe7 {[%clk 0:01:10]} 31. Rd6 {[%clk 0:01:40]}  f5 {[%clk 0:01:10]} 32. g3 {[%clk 0:01:39]}  Bc8 {[%clk 0:01:06]} 33. h4 {[%clk 0:01:38]}  Be6 {[%clk 0:01:07]} 34. Kf1 {[%clk 0:01:35]}  Kf7 {[%clk 0:01:06]} 35. Ke1 {[%clk 0:01:35]}  Rc7 {[%clk 0:01:06]} 36. Kd2 {[%clk 0:01:35]}  Ke7 {[%clk 0:01:06]} 37. Ra6 {[%clk 0:01:34]}  Rd7+ {[%clk 0:01:06]} 38. Ke2 {[%clk 0:01:34]}  Rc7 {[%clk 0:00:55]} 39. Ng2 {[%clk 0:01:34]}  Kf7 {[%clk 0:00:43]} 40. Nf4 {[%clk 0:01:34]}  Re7 {[%clk 0:00:43]} 41. Nxe6 {[%clk 0:01:30]}  Rxe6 {[%clk 0:00:44]} 42. Rxa7+ {[%clk 0:01:27]}  Kf6 {[%clk 0:00:44]} 43. Rc7 {[%clk 0:01:25]}  Ra6 {[%clk 0:00:44]} 44. Rxc5 {[%clk 0:01:09]}  Rxa2+ {[%clk 0:00:43]} 45. Ke3 {[%clk 0:01:09]}  Rc2 {[%clk 0:00:44]} 46. Rc6+ {[%clk 0:01:09]}  Ke5 {[%clk 0:00:40]} 47. Rc5+ {[%clk 0:01:07]}  Kf6 {[%clk 0:00:39]} 48. Rb5 {[%clk 0:01:08]}  Kg7 {[%clk 0:00:29]} 49. c5 {[%clk 0:01:07]}  Kh6 {[%clk 0:00:30]} 50. b4 {[%clk 0:01:05]}  Kh5 {[%clk 0:00:30]} 51. Rb6 {[%clk 0:01:02]}  Rc3+ {[%clk 0:00:27]} 52. Kd2 {[%clk 0:01:02]}  Rf3 {[%clk 0:00:26]} 53. Ke2 {[%clk 0:01:01]}  Rc3 {[%clk 0:00:26]} 54. c6 {[%clk 0:01:01]}  Kg4 {[%clk 0:00:20]} 55. b5 {[%clk 0:01:01]}  Rc2+ {[%clk 0:00:21]} 56. Kd1 {[%clk 0:01:01]}  Rc5 {[%clk 0:00:20]} 57. Rb7 {[%clk 0:01:00]}  Kf3 {[%clk 0:00:20]} 58. Ke1 {[%clk 0:00:54]}  Rc1+ {[%clk 0:00:20]} 59. Kd2 {[%clk 0:00:54]}  Rc5 {[%clk 0:00:21]} 60. Re7 {[%clk 0:00:10]}  Rxb5 {[%clk 0:00:19]} 61. c7 {[%clk 0:00:09]}  Rc5 {[%clk 0:00:19]} 62. Ke1 {[%clk 0:00:07]}  Rc1+ {[%clk 0:00:19]} 63. Kd2 {[%clk 0:00:06]}  Rc5 {[%clk 0:00:19]} 64. h5 {[%clk 0:00:05]}  gxh5 {[%clk 0:00:18]} 65. Ke1 {[%clk 0:00:05]}  Rc1+ {[%clk 0:00:18]} 66. Kd2 {[%clk 0:00:05]}  Rc5 {[%clk 0:00:18]} 67. Ke1 {[%clk 0:00:06]}  h4 {[%clk 0:00:12]} 68. gxh4 {[%clk 0:00:05]}  f4 {[%clk 0:00:13]} 69. Kd2 {[%clk 0:00:04]}  Rd5+ {[%clk 0:00:12]} 70. Kc3 {[%clk 0:00:04]}  Rc5+ {[%clk 0:00:07]} 71. Kd4 {[%clk 0:00:04]}  Rc1 {[%clk 0:00:07]} 72. Kd5 {[%clk 0:00:04]}  Rd1+ {[%clk 0:00:05]} 73. Ke6 {[%clk 0:00:03]}  Rc1 {[%clk 0:00:04]} 74. Kd7 {[%clk 0:00:04]}  Rd1+ {[%clk 0:00:05]} 75. Ke8 {[%clk 0:00:04]}  Rc1 {[%clk 0:00:04]} 76. Kd8 {[%clk 0:00:05]}  e3 {[%clk 0:00:02]} 77. fxe3 {[%clk 0:00:05]}  Rd1+ {[%clk 0:00:02]} 78. Rd7 {[%clk 0:00:04]} 1-0


[Site "https://www.chess.com"]

[Event "Titled Tuesday Blitz February 15 Early 2022"]
[White "Martinez Alcantara, Jose Eduardo"]
[Black "Boruchovsky, Avital"]
[WhiteFideId "3805662"]
[BlackFideId "2800055"]
[WhiteElo "2690"]
[BlackElo "2469"]
[Result "1-0"]
[Round "03"]
[TimeControl "180+1"]
[Date "2022.02.15"]
[WhiteClock "0:00:09"]
[BlackClock "0:00:09"]

1. e4 {[%clk 0:03:00]}  e5 {[%clk 0:02:59]} 2. Nf3 {[%clk 0:03:00]}  Nc6 {[%clk 0:02:59]} 3. Bb5 {[%clk 0:03:01]}  a6 {[%clk 0:02:59]} 4. Ba4 {[%clk 0:03:02]}  Nf6 {[%clk 0:02:59]} 5. O-O {[%clk 0:03:03]}  b5 {[%clk 0:02:59]} 6. Bb3 {[%clk 0:03:03]}  Bb7 {[%clk 0:03:00]} 7. d3 {[%clk 0:03:01]}  Be7 {[%clk 0:02:54]} 8. a4 {[%clk 0:02:57]}  O-O {[%clk 0:02:53]} 9. Nc3 {[%clk 0:02:58]}  Na5 {[%clk 0:02:53]} 10. Bd5 {[%clk 0:02:52]}  c6 {[%clk 0:02:38]} 11. Ba2 {[%clk 0:02:52]}  b4 {[%clk 0:02:38]} 12. Ne2 {[%clk 0:02:52]}  d6 {[%clk 0:02:38]} 13. Ng3 {[%clk 0:02:42]}  c5 {[%clk 0:02:31]} 14. Bg5 {[%clk 0:02:29]}  d5 {[%clk 0:02:23]} 15. Nxe5 {[%clk 0:02:05]}  dxe4 {[%clk 0:02:22]} 16. dxe4 {[%clk 0:01:58]}  Nxe4 {[%clk 0:02:16]} 17. Nxe4 {[%clk 0:01:12]}  Bxe4 {[%clk 0:02:14]} 18. Qg4 {[%clk 0:01:11]}  Bxc2 {[%clk 0:02:02]} 19. Rad1 {[%clk 0:00:42]}  Bxd1 {[%clk 0:01:45]} 20. Rxd1 {[%clk 0:00:42]}  Qe8 {[%clk 0:01:20]} 21. Bf4 {[%clk 0:00:35]}  Bf6 {[%clk 0:01:14]} 22. Nd7 {[%clk 0:00:34]}  Bxb2 {[%clk 0:01:14]} 23. Bd6 {[%clk 0:00:24]}  h5 {[%clk 0:00:35]} 24. Qf5 {[%clk 0:00:20]}  b3 {[%clk 0:00:23]} 25. Nxf8 {[%clk 0:00:20]}  Qxf8 {[%clk 0:00:09]} 26. Bxf8 {[%clk 0:00:16]}  bxa2 {[%clk 0:00:09]} 27. Bxc5 {[%clk 0:00:13]}  a1=Q {[%clk 0:00:09]} 28. Rxa1 {[%clk 0:00:13]}  Bxa1 {[%clk 0:00:10]} 29. g3 {[%clk 0:00:11]}  Re8 {[%clk 0:00:09]} 30. Qxh5 {[%clk 0:00:11]}  g6 {[%clk 0:00:09]} 31. Qf3 {[%clk 0:00:11]}  Re5 {[%clk 0:00:07]} 32. Bd6 {[%clk 0:00:08]}  Rf5 {[%clk 0:00:07]} 33. Qa8+ {[%clk 0:00:08]}  Kh7 {[%clk 0:00:08]} 34. Qxa6 {[%clk 0:00:09]}  Bd4 {[%clk 0:00:08]} 35. Bf4 {[%clk 0:00:08]}  g5 {[%clk 0:00:09]} 36. Qd3 {[%clk 0:00:08]}  Kg6 {[%clk 0:00:08]} 37. g4 {[%clk 0:00:09]}  gxf4 {[%clk 0:00:09]} 38. Qxf5+ {[%clk 0:00:09]} 1-0


[Site "https://www.chess.com"]

[Event "Titled Tuesday Blitz February 15 Early 2022"]
[White "Matveeva, Olga"]
[Black "Gunina, Valentina"]
[WhiteFideId "24107018"]
[BlackFideId "4167570"]
[WhiteElo "2083"]
[BlackElo "2465"]
[Result "0-1"]
[Round "03"]
[TimeControl "180+1"]
[Date "2022.02.15"]
[WhiteClock "0:00:13"]
[BlackClock "0:01:16"]

1. e4 {[%clk 0:03:00]}  c6 {[%clk 0:02:57]} 2. d4 {[%clk 0:02:58]}  d5 {[%clk 0:02:54]} 3. e5 {[%clk 0:02:58]}  c5 {[%clk 0:02:54]} 4. dxc5 {[%clk 0:02:56]}  e6 {[%clk 0:02:53]} 5. a3 {[%clk 0:02:54]}  Bxc5 {[%clk 0:02:51]} 6. Qg4 {[%clk 0:02:51]}  Ne7 {[%clk 0:02:50]} 7. Nf3 {[%clk 0:02:49]}  O-O {[%clk 0:02:47]} 8. Bd3 {[%clk 0:02:46]}  Ng6 {[%clk 0:02:45]} 9. h4 {[%clk 0:02:24]}  Nc6 {[%clk 0:02:39]} 10. Qh5 {[%clk 0:02:07]}  Qe8 {[%clk 0:02:30]} 11. Ng5 {[%clk 0:01:57]}  h6 {[%clk 0:02:29]} 12. Nf3 {[%clk 0:01:43]}  f5 {[%clk 0:02:16]} 13. exf6 {[%clk 0:01:38]}  Rxf6 {[%clk 0:02:14]} 14. Nc3 {[%clk 0:01:29]}  Qf7 {[%clk 0:02:04]} 15. Bg5 {[%clk 0:01:20]}  Nge5 {[%clk 0:01:57]} 16. Qxf7+ {[%clk 0:01:12]}  Rxf7 {[%clk 0:01:56]} 17. Nxe5 {[%clk 0:00:41]}  Nxe5 {[%clk 0:01:56]} 18. Be3 {[%clk 0:00:40]}  d4 {[%clk 0:01:54]} 19. Ne4 {[%clk 0:00:36]}  dxe3 {[%clk 0:01:53]} 20. Nxc5 {[%clk 0:00:36]}  exf2+ {[%clk 0:01:53]} 21. Ke2 {[%clk 0:00:35]}  b6 {[%clk 0:01:46]} 22. Ne4 {[%clk 0:00:34]}  Bb7 {[%clk 0:01:42]} 23. Nxf2 {[%clk 0:00:30]}  Bxg2 {[%clk 0:01:40]} 24. Rhg1 {[%clk 0:00:29]}  Bf3+ {[%clk 0:01:40]} 25. Ke3 {[%clk 0:00:29]}  Raf8 {[%clk 0:01:39]} 26. Ne4 {[%clk 0:00:25]}  Bxe4 {[%clk 0:01:38]} 27. Bxe4 {[%clk 0:00:26]}  Nc4+ {[%clk 0:01:37]} 28. Kd4 {[%clk 0:00:22]}  Nxb2 {[%clk 0:01:37]} 29. h5 {[%clk 0:00:20]}  Rd8+ {[%clk 0:01:34]} 30. Kc3 {[%clk 0:00:20]}  Na4+ {[%clk 0:01:33]} 31. Kb4 {[%clk 0:00:20]}  Nc5 {[%clk 0:01:33]} 32. Bg6 {[%clk 0:00:18]}  Rc7 {[%clk 0:01:32]} 33. Rad1 {[%clk 0:00:16]}  Rdc8 {[%clk 0:01:31]} 34. Rd6 {[%clk 0:00:14]}  Nd7 {[%clk 0:01:25]} 35. Rgd1 {[%clk 0:00:13]}  Nf8 {[%clk 0:01:23]} 36. Rd8 {[%clk 0:00:13]}  Rc5 {[%clk 0:01:22]} 37. Rxc8 {[%clk 0:00:12]}  Rxc8 {[%clk 0:01:21]} 38. c4 {[%clk 0:00:12]}  Nxg6 {[%clk 0:01:20]} 39. hxg6 {[%clk 0:00:13]}  e5 {[%clk 0:01:16]} 40. Rd7 {[%clk 0:00:13]}  Re8 {[%clk 0:01:16]} 41. Rxa7 {[%clk 0:00:13]}  e4 {[%clk 0:01:16]} 42. Kc3 {[%clk 0:00:13]}  e3 {[%clk 0:01:16]} 0-1


[Site "https://www.chess.com"]

[Event "Titled Tuesday Blitz February 15 Early 2022"]
[White "Mejia, Cherry Ann"]
[Black "FGHSMN"]
[WhiteFideId "5206880"]
[WhiteElo "2007"]
[BlackElo "2717"]
[Result "0-1"]
[Round "03"]
[TimeControl "180+1"]
[Date "2022.02.15"]
[WhiteClock "0:00:01"]
[BlackClock "0:00:07"]

1. e4 {[%clk 0:03:00]}  c5 {[%clk 0:02:59]} 2. Nc3 {[%clk 0:03:00]}  e6 {[%clk 0:02:58]} 3. g3 {[%clk 0:03:01]}  Nc6 {[%clk 0:02:58]} 4. Bg2 {[%clk 0:03:01]}  g6 {[%clk 0:02:58]} 5. d3 {[%clk 0:03:00]}  Bg7 {[%clk 0:02:59]} 6. Be3 {[%clk 0:03:01]}  d6 {[%clk 0:02:59]} 7. Qd2 {[%clk 0:03:02]}  Rb8 {[%clk 0:03:00]} 8. Nge2 {[%clk 0:03:01]}  Nd4 {[%clk 0:02:48]} 9. Nc1 {[%clk 0:03:00]}  h5 {[%clk 0:02:45]} 10. h3 {[%clk 0:03:00]}  h4 {[%clk 0:02:43]} 11. g4 {[%clk 0:03:00]}  Ne7 {[%clk 0:02:38]} 12. Nd1 {[%clk 0:03:00]}  b6 {[%clk 0:02:15]} 13. c3 {[%clk 0:03:00]}  Ndc6 {[%clk 0:02:15]} 14. d4 {[%clk 0:02:42]}  cxd4 {[%clk 0:02:12]} 15. cxd4 {[%clk 0:02:43]}  Ba6 {[%clk 0:02:09]} 16. Nc3 {[%clk 0:02:30]}  d5 {[%clk 0:01:36]} 17. e5 {[%clk 0:02:28]}  Bxe5 {[%clk 0:01:31]} 18. dxe5 {[%clk 0:02:25]}  d4 {[%clk 0:01:31]} 19. Ne4 {[%clk 0:02:17]}  dxe3 {[%clk 0:01:28]} 20. Nd6+ {[%clk 0:02:15]}  Kf8 {[%clk 0:01:23]} 21. Qxe3 {[%clk 0:02:15]}  Nd5 {[%clk 0:01:00]} 22. Bxd5 {[%clk 0:01:31]}  exd5 {[%clk 0:01:01]} 23. Ne2 {[%clk 0:01:25]}  Qe7 {[%clk 0:00:48]} 24. f4 {[%clk 0:01:17]}  Nb4 {[%clk 0:00:41]} 25. Nd4 {[%clk 0:01:08]}  Nd3+ {[%clk 0:00:34]} 26. Kd2 {[%clk 0:01:08]}  Qd7 {[%clk 0:00:20]} 27. b3 {[%clk 0:00:53]}  Kg7 {[%clk 0:00:12]} 28. f5 {[%clk 0:00:31]}  Rbe8 {[%clk 0:00:12]} 29. f6+ {[%clk 0:00:31]}  Kh7 {[%clk 0:00:12]} 30. N4f5 {[%clk 0:00:24]}  gxf5 {[%clk 0:00:11]} 31. Nxf5 {[%clk 0:00:24]}  Kg6 {[%clk 0:00:09]} 32. Ne7+ {[%clk 0:00:12]}  Rxe7 {[%clk 0:00:10]} 33. fxe7 {[%clk 0:00:13]}  Qxe7 {[%clk 0:00:10]} 34. Rhf1 {[%clk 0:00:11]}  Qb4+ {[%clk 0:00:10]} 35. Kd1 {[%clk 0:00:02]}  Nb2+ {[%clk 0:00:09]} 36. Kc2 {[%clk 0:00:02]}  Bxf1 {[%clk 0:00:03]} 37. Rxf1 {[%clk 0:00:02]}  Qe4+ {[%clk 0:00:03]} 38. Qxe4+ {[%clk 0:00:02]}  dxe4 {[%clk 0:00:04]} 39. Kxb2 {[%clk 0:00:03]}  Re8 {[%clk 0:00:05]} 40. Rf6+ {[%clk 0:00:03]}  Kg7 {[%clk 0:00:05]} 41. Rf5 {[%clk 0:00:02]}  Rd8 {[%clk 0:00:05]} 42. Kc3 {[%clk 0:00:03]}  Rd3+ {[%clk 0:00:05]} 43. Kc2 {[%clk 0:00:03]}  Rxh3 {[%clk 0:00:06]} 44. Rf4 {[%clk 0:00:04]}  Rg3 {[%clk 0:00:06]} 45. Rxe4 {[%clk 0:00:04]}  h3 {[%clk 0:00:07]} 46. Re1 {[%clk 0:00:01]}  h2 {[%clk 0:00:07]} 0-1


[Site "https://www.chess.com"]

[Event "Titled Tuesday Blitz February 15 Early 2022"]
[White "Mirzanurov, Bulat"]
[Black "Tanenbaum, Zachary"]
[WhiteFideId "4184521"]
[BlackFideId "2060850"]
[WhiteElo "2116"]
[BlackElo "2168"]
[Result "0-1"]
[Round "03"]
[TimeControl "180+1"]
[Date "2022.02.15"]
[WhiteClock "0:01:11"]
[BlackClock "0:02:14"]

1. e4 {[%clk 0:02:59]}  e5 {[%clk 0:02:58]} 2. Nf3 {[%clk 0:02:58]}  Nc6 {[%clk 0:02:57]} 3. Bc4 {[%clk 0:02:57]}  Nf6 {[%clk 0:02:56]} 4. d3 {[%clk 0:02:56]}  Be7 {[%clk 0:02:56]} 5. O-O {[%clk 0:02:56]}  O-O {[%clk 0:02:56]} 6. c3 {[%clk 0:02:56]}  d5 {[%clk 0:02:56]} 7. exd5 {[%clk 0:02:51]}  Nxd5 {[%clk 0:02:56]} 8. Re1 {[%clk 0:02:49]}  Bg4 {[%clk 0:02:55]} 9. h3 {[%clk 0:02:47]}  Bh5 {[%clk 0:02:55]} 10. g4 {[%clk 0:02:25]}  Bg6 {[%clk 0:02:53]} 11. Nxe5 {[%clk 0:02:26]}  Nxe5 {[%clk 0:02:53]} 12. Rxe5 {[%clk 0:02:26]}  Nb6 {[%clk 0:02:54]} 13. Re1 {[%clk 0:02:04]}  Nxc4 {[%clk 0:02:47]} 14. dxc4 {[%clk 0:02:05]}  Bd6 {[%clk 0:02:47]} 15. Qf3 {[%clk 0:01:53]}  f5 {[%clk 0:02:43]} 16. g5 {[%clk 0:01:43]}  f4 {[%clk 0:02:31]} 17. h4 {[%clk 0:01:31]}  Re8 {[%clk 0:02:24]} 18. Rxe8+ {[%clk 0:01:16]}  Qxe8 {[%clk 0:02:25]} 19. Bxf4 {[%clk 0:01:13]}  Qe1+ {[%clk 0:02:18]} 20. Kh2 {[%clk 0:01:12]}  Be4 {[%clk 0:02:16]} 21. Qg3 {[%clk 0:01:11]}  Qh1# {[%clk 0:02:14]} 0-1


[Site "https://www.chess.com"]

[Event "Titled Tuesday Blitz February 15 Early 2022"]
[White "Mischuk, Dmitry"]
[Black "Sanal, Vahap"]
[WhiteFideId "14118734"]
[BlackFideId "6300545"]
[WhiteElo "2256"]
[BlackElo "2603"]
[Result "0-1"]
[Round "03"]
[TimeControl "180+1"]
[Date "2022.02.15"]
[WhiteClock "0:00:01"]
[BlackClock "0:00:15"]

1. e4 {[%clk 0:03:00]}  e5 {[%clk 0:02:59]} 2. Nf3 {[%clk 0:02:58]}  Nc6 {[%clk 0:02:59]} 3. Bc4 {[%clk 0:02:58]}  Bc5 {[%clk 0:02:59]} 4. O-O {[%clk 0:02:57]}  Nf6 {[%clk 0:02:59]} 5. d4 {[%clk 0:02:57]}  Bxd4 {[%clk 0:02:58]} 6. Nxd4 {[%clk 0:02:57]}  Nxd4 {[%clk 0:02:59]} 7. f4 {[%clk 0:02:57]}  d6 {[%clk 0:02:58]} 8. fxe5 {[%clk 0:02:58]}  dxe5 {[%clk 0:02:58]} 9. Bg5 {[%clk 0:02:58]}  Qd6 {[%clk 0:02:51]} 10. Bxf6 {[%clk 0:02:27]}  gxf6 {[%clk 0:02:51]} 11. c3 {[%clk 0:02:27]}  Be6 {[%clk 0:02:22]} 12. Bxe6 {[%clk 0:01:36]}  Nxe6 {[%clk 0:02:19]} 13. Qxd6 {[%clk 0:01:33]}  cxd6 {[%clk 0:02:20]} 14. Rxf6 {[%clk 0:01:26]}  Ke7 {[%clk 0:02:17]} 15. Rf3 {[%clk 0:01:22]}  h5 {[%clk 0:02:09]} 16. Nd2 {[%clk 0:01:21]}  Rag8 {[%clk 0:02:05]} 17. Nf1 {[%clk 0:00:53]}  Ng5 {[%clk 0:01:51]} 18. Re3 {[%clk 0:00:49]}  h4 {[%clk 0:01:51]} 19. Rd1 {[%clk 0:00:40]}  Rh6 {[%clk 0:01:49]} 20. Nd2 {[%clk 0:00:32]}  Ne6 {[%clk 0:01:40]} 21. g3 {[%clk 0:00:14]}  Rhg6 {[%clk 0:01:21]} 22. Kf2 {[%clk 0:00:13]}  hxg3+ {[%clk 0:01:18]} 23. hxg3 {[%clk 0:00:13]}  Rh6 {[%clk 0:01:14]} 24. Nf3 {[%clk 0:00:12]}  Rf6 {[%clk 0:01:05]} 25. Rh1 {[%clk 0:00:09]}  Kd7 {[%clk 0:00:50]} 26. Rh5 {[%clk 0:00:03]}  Nc5 {[%clk 0:00:45]} 27. Kg2 {[%clk 0:00:01]}  Rfg6 {[%clk 0:00:45]} 28. Nh4 {[%clk 0:00:01]}  Rg4 {[%clk 0:00:43]} 29. Rh7 {[%clk 0:00:01]}  Nxe4 {[%clk 0:00:37]} 30. Rxf7+ {[%clk 0:00:01]}  Ke6 {[%clk 0:00:38]} 31. Rh7 {[%clk 0:00:01]}  Rxg3+ {[%clk 0:00:37]} 32. Rxg3 {[%clk 0:00:01]}  Rxg3+ {[%clk 0:00:38]} 33. Kh2 {[%clk 0:00:02]}  Rd3 {[%clk 0:00:37]} 34. Rh6+ {[%clk 0:00:02]}  Kd7 {[%clk 0:00:38]} 35. Nf5 {[%clk 0:00:03]}  Rd2+ {[%clk 0:00:37]} 36. Kh3 {[%clk 0:00:03]}  Rxb2 {[%clk 0:00:36]} 37. Kg4 {[%clk 0:00:03]}  Rxa2 {[%clk 0:00:29]} 38. Kf3 {[%clk 0:00:02]}  Nd2+ {[%clk 0:00:29]} 39. Ke3 {[%clk 0:00:02]}  Nc4+ {[%clk 0:00:29]} 40. Kd3 {[%clk 0:00:02]}  b5 {[%clk 0:00:27]} 41. Rh7+ {[%clk 0:00:02]}  Ke6 {[%clk 0:00:25]} 42. Ng3 {[%clk 0:00:01]}  Rd2+ {[%clk 0:00:22]} 43. Ke4 {[%clk 0:00:01]}  d5+ {[%clk 0:00:23]} 44. Kf3 {[%clk 0:00:02]}  Rd3+ {[%clk 0:00:23]} 45. Kg4 {[%clk 0:00:02]}  Rxc3 {[%clk 0:00:18]} 46. Rh6+ {[%clk 0:00:02]}  Kd7 {[%clk 0:00:19]} 47. Nh5 {[%clk 0:00:02]}  b4 {[%clk 0:00:18]} 48. Kf5 {[%clk 0:00:02]}  b3 {[%clk 0:00:17]} 49. Nf6+ {[%clk 0:00:03]}  Kc8 {[%clk 0:00:16]} 50. Nxd5 {[%clk 0:00:02]}  Ne3+ {[%clk 0:00:16]} 51. Ke6 {[%clk 0:00:01]}  Rc6+ {[%clk 0:00:15]} 0-1


[Site "https://www.chess.com"]

[Event "Titled Tuesday Blitz February 15 Early 2022"]
[White "Mohammed, Dilshad"]
[Black "Thunderbolt135"]
[WhiteFideId "5050421"]
[WhiteElo "2153"]
[BlackElo "2747"]
[Result "0-1"]
[Round "03"]
[TimeControl "180+1"]
[Date "2022.02.15"]
[WhiteClock "0:00:02"]
[BlackClock "0:00:14"]

1. Nf3 {[%clk 0:02:58]}  Nf6 {[%clk 0:02:59]} 2. c4 {[%clk 0:02:58]}  e6 {[%clk 0:02:58]} 3. g3 {[%clk 0:02:58]}  d5 {[%clk 0:02:58]} 4. Bg2 {[%clk 0:02:58]}  Be7 {[%clk 0:02:57]} 5. O-O {[%clk 0:02:59]}  O-O {[%clk 0:02:57]} 6. cxd5 {[%clk 0:02:59]}  exd5 {[%clk 0:02:57]} 7. d4 {[%clk 0:03:00]}  c6 {[%clk 0:02:58]} 8. Nc3 {[%clk 0:03:00]}  Bf5 {[%clk 0:02:48]} 9. Nh4 {[%clk 0:02:51]}  Bg4 {[%clk 0:02:43]} 10. Qb3 {[%clk 0:02:50]}  Qb6 {[%clk 0:02:42]} 11. h3 {[%clk 0:02:51]}  Qxb3 {[%clk 0:02:36]} 12. axb3 {[%clk 0:02:52]}  Be6 {[%clk 0:02:37]} 13. Nf3 {[%clk 0:02:50]}  h6 {[%clk 0:02:29]} 14. Ne5 {[%clk 0:02:39]}  Nbd7 {[%clk 0:02:28]} 15. Nd3 {[%clk 0:02:33]}  Bf5 {[%clk 0:02:22]} 16. Rd1 {[%clk 0:02:23]}  Rfe8 {[%clk 0:02:14]} 17. g4 {[%clk 0:02:08]}  Bh7 {[%clk 0:02:12]} 18. Bf4 {[%clk 0:02:05]}  Nf8 {[%clk 0:02:04]} 19. Bg3 {[%clk 0:01:56]}  Ne6 {[%clk 0:02:05]} 20. e3 {[%clk 0:01:55]}  h5 {[%clk 0:02:05]} 21. Ne5 {[%clk 0:01:48]}  hxg4 {[%clk 0:01:57]} 22. hxg4 {[%clk 0:01:49]}  Bd6 {[%clk 0:01:51]} 23. f3 {[%clk 0:01:30]}  Bc2 {[%clk 0:01:38]} 24. Rd2 {[%clk 0:01:28]}  Bxb3 {[%clk 0:01:39]} 25. Bf1 {[%clk 0:01:27]}  Ng5 {[%clk 0:01:35]} 26. Kf2 {[%clk 0:01:24]}  a5 {[%clk 0:01:29]} 27. Bd3 {[%clk 0:01:20]}  g6 {[%clk 0:01:24]} 28. Bh4 {[%clk 0:01:14]}  Ngh7 {[%clk 0:00:57]} 29. Bg3 {[%clk 0:01:14]}  Kg7 {[%clk 0:00:55]} 30. Rg1 {[%clk 0:01:07]}  a4 {[%clk 0:00:53]} 31. Rh1 {[%clk 0:01:00]}  Nf8 {[%clk 0:00:40]} 32. Bf4 {[%clk 0:01:00]}  Ne6 {[%clk 0:00:40]} 33. Bh6+ {[%clk 0:01:00]}  Kg8 {[%clk 0:00:40]} 34. Kg3 {[%clk 0:00:53]}  c5 {[%clk 0:00:39]} 35. f4 {[%clk 0:00:50]}  cxd4 {[%clk 0:00:38]} 36. exd4 {[%clk 0:00:51]}  Nxd4 {[%clk 0:00:36]} 37. Rdh2 {[%clk 0:00:49]}  Ne6 {[%clk 0:00:24]} 38. Bb5 {[%clk 0:00:25]}  Re7 {[%clk 0:00:23]} 39. Ra1 {[%clk 0:00:25]}  a3 {[%clk 0:00:23]} 40. bxa3 {[%clk 0:00:25]}  d4 {[%clk 0:00:22]} 41. g5 {[%clk 0:00:21]}  Nd5 {[%clk 0:00:20]} 42. Ne4 {[%clk 0:00:21]}  Nexf4 {[%clk 0:00:17]} 43. Bf8 {[%clk 0:00:07]}  Rxf8 {[%clk 0:00:14]} 44. Rah1 {[%clk 0:00:06]}  Bxe5 {[%clk 0:00:14]} 45. Nf6+ {[%clk 0:00:05]}  Bxf6 {[%clk 0:00:15]} 46. gxf6 {[%clk 0:00:05]}  Re3+ {[%clk 0:00:14]} 47. Kf2 {[%clk 0:00:05]}  Nxf6 {[%clk 0:00:13]} 48. Rh8+ {[%clk 0:00:05]}  Kg7 {[%clk 0:00:14]} 49. R8h4 {[%clk 0:00:05]}  Ne4+ {[%clk 0:00:14]} 50. Kf1 {[%clk 0:00:05]}  Rc8 {[%clk 0:00:13]} 51. Rxf4 {[%clk 0:00:04]}  Rc1+ {[%clk 0:00:14]} 52. Kg2 {[%clk 0:00:05]}  Rxh1 {[%clk 0:00:13]} 53. Kxh1 {[%clk 0:00:05]}  Bd5 {[%clk 0:00:14]} 54. Kh2 {[%clk 0:00:05]}  Nc3 {[%clk 0:00:13]} 55. Bf1 {[%clk 0:00:04]}  d3 {[%clk 0:00:13]} 56. Rd4 {[%clk 0:00:04]}  Be4 {[%clk 0:00:13]} 57. Rd7 {[%clk 0:00:04]}  Nd5 {[%clk 0:00:13]} 58. Bg2 {[%clk 0:00:02]}  d2 {[%clk 0:00:13]} 59. Bxe4 {[%clk 0:00:02]}  d1=Q {[%clk 0:00:13]} 60. Bxd5 {[%clk 0:00:03]}  Qd2+ {[%clk 0:00:13]} 61. Bg2 {[%clk 0:00:02]}  Qxd7 {[%clk 0:00:14]} 0-1


[Site "https://www.chess.com"]